bitfinex/quotes_SOLUSD_20250619
["timestamp","ask_amount","ask_price","bid_price","bid_amount"]
[1750341321727,11.38404936,144.0,143.95,1.4678937]
[1750341321946,26.0,143.98,143.95,8.41475024]
[1750341322121,11.38404936,143.96,143.95,1.4678937]
[1750341322444,37.38404936,143.96,143.95,1.4678937]
[1750341323846,37.38404936,143.96,143.95,8.41475024]
[1750341324019,26.0,143.96,143.95,1.4678937]
[1750341324424,37.38404936,143.96,143.95,1.4678937]
[1750341324633,37.38404936,143.96,143.95,8.41475024]
[1750341324841,37.38404936,143.96,143.95,1.4678937]
[1750341325351,26.0,143.96,143.95,8.41475024]
[1750341325521,11.38404936,143.96,143.95,8.41475024]
[1750341326760,11.38404936,143.98,143.95,25.7818916]
[1750341330242,11.38404936,143.97,143.95,25.7818916]
[1750341330736,11.38404936,143.96,143.95,8.41475024]
[1750341331333,26.0,143.99,143.95,25.7818916]
[1750341331536,11.38404936,143.97,143.95,25.7818916]
[1750341331935,11.38404936,143.96,143.95,25.7818916]
[1750341332340,11.38404936,143.97,143.95,25.7818916]
[1750341332733,0.8717,144.0,143.95,25.7818916]
[1750341332734,11.38404936,143.98,143.95,25.7818916]
[1750341333142,11.38404936,143.97,143.95,25.7818916]
[1750341333772,0.8717,144.0,143.95,37.16594096]
[1750341333937,0.8717,144.0,143.96,11.38404936]
[1750341334156,0.8717,144.0,143.98,11.38404936]
[1750341334454,0.8717,144.0,143.99,11.38404936]
[1750341334642,0.8717,144.0,143.99,19.85807609]
[1750341339151,0.8717,144.0,143.99,38.50772495]
[1750341344167,0.8717,144.0,143.99,49.89177431]
[1750341344551,0.8717,144.0,143.99,144.64557431]
[1750341344772,7.8514,144.1,144.0,18.64964886]
[1750341344981,11.38404936,144.09,144.05,11.38404936]
[1750341345364,7.8514,144.1,144.05,11.38404936]
[1750341345554,11.38404936,144.09,144.05,11.38404936]
[1750341346082,7.8514,144.1,144.05,11.38404936]
[1750341346250,6.2866,144.14,144.08,11.38404936]
[1750341346457,11.38404936,144.13,144.1,24.28868841]
[1750341346652,6.2866,144.14,144.1,24.28868841]
[1750341346858,11.38404936,144.13,144.1,24.28868841]
[1750341347068,11.38404936,144.12,144.1,24.28868841]
[1750341347578,11.38404936,144.12,144.1,6.93962526]
[1750341347878,11.38404936,144.11,144.1,6.93962526]
[1750341348259,11.38404936,144.11,144.06,6.94155213]
[1750341348576,11.38404936,144.07,144.04,6.94251596]
[1750341348815,11.38404936,144.05,144.04,6.94251596]
[1750341349869,8.52521551,144.11,144.04,6.94251596]
[1750341350073,11.38404936,144.05,144.04,6.94251596]
[1750341350975,19.53329863,144.05,144.04,6.94251596]
[1750341353264,19.53329863,144.05,144.01,24.30272118]
[1750341353660,19.53329863,144.03,144.01,24.30272118]
[1750341353990,19.53329863,144.04,144.01,24.30272118]
[1750341355487,19.53329863,144.03,144.01,24.30272118]
[1750341355791,19.53329863,144.04,144.01,24.30272118]
[1750341356315,19.53329863,144.05,144.01,43.83601981]
[1750341357276,19.53329863,144.04,144.01,24.30272118]
[1750341358181,6.3607,144.08,144.01,24.30272118]
[1750341358366,19.53329863,144.04,144.01,24.30272118]
[1750341359163,19.53329863,144.07,144.03,19.53329863]
[1750341359370,19.53329863,144.06,144.03,24.30049294]
[1750341359569,19.53329863,144.05,144.03,24.30049294]
[1750341360366,6.3607,144.08,144.03,24.30049294]
[1750341360565,19.53329863,144.06,144.03,24.30049294]
[1750341360759,19.53329863,144.05,144.03,24.30049294]
[1750341360989,19.53329863,144.04,144.03,24.30049294]
[1750341361493,19.53329863,144.04,144.01,17.35990556]
[1750341363678,19.53329863,144.04,144.01,24.30386778]
[1750341363887,19.53329863,144.05,144.01,43.83716641]
[1750341364088,19.53329863,144.05,144.02,18.64964886]
[1750341365271,19.53329863,144.04,144.01,24.30386778]
[1750341366090,26.0,144.07,144.01,24.30386778]
[1750341366388,19.53329863,144.04,144.01,24.30386778]
[1750341366588,19.53329863,144.05,144.01,43.83716641]
[1750341367280,19.53329863,144.04,144.01,24.30386778]
[1750341367494,19.53329863,144.02,144.01,6.94396222]
[1750341367696,19.53329863,144.02,143.99,17.36221108]
[1750341367871,19.53329863,144.01,143.99,17.36221108]
[1750341368272,19.53329863,144.02,143.99,17.36221108]
[1750341368583,19.53329863,144.03,143.99,36.89550971]
[1750341369794,19.53329863,144.03,143.99,43.84043644]
[1750341370173,19.53329863,144.03,143.99,24.30713781]
[1750341370374,19.53329863,144.0,143.99,6.94492673]
[1750341371093,11.40210595,144.0,143.99,6.94492673]
[1750341371333,11.40210595,144.01,143.99,24.30724355]
[1750341371787,26.0,144.04,143.99,17.36231682]
[1750341371997,26.0,144.04,143.99,28.76442277]
[1750341372191,11.40210595,144.03,143.99,28.76442277]
[1750341372771,37.40210595,144.04,143.99,28.76442277]
[1750341373102,11.40210595,144.03,143.99,28.76442277]
[1750341373877,11.40210595,144.01,143.99,24.30724355]
[1750341374078,11.40210595,144.02,143.99,24.30724355]
[1750341375077,26.0,144.03,143.99,24.30724355]
[1750341375283,11.40210595,144.03,143.99,35.7093495]
[1750341375984,26.0,144.05,144.0,18.64964886]
[1750341376180,11.40210595,144.04,144.0,18.64964886]
[1750341377187,11.40210595,144.04,144.0,30.05175481]
[1750341377507,11.40210595,144.04,144.01,24.30386778]
[1750341380799,11.40210595,144.07,144.03,11.40210595]
[1750341381014,11.40210595,144.07,144.02,18.64964886]
[1750341381229,11.40210595,144.07,144.03,11.40210595]
[1750341381587,11.40210595,144.07,144.04,24.29880587]
[1750341382099,26.0,144.09,144.04,24.29880587]
[1750341382288,11.40210595,144.07,144.04,24.29880587]
[1750341383692,11.40210595,144.08,144.04,35.70091182]
[1750341384122,37.40210595,144.09,144.05,11.40210595]
[1750341384290,158.00210595,144.1,144.06,11.40210595]
[1750341384490,11.40210595,144.1,144.06,11.40210595]
[1750341385204,11.40210595,144.07,144.04,35.70091182]
[1750341385414,11.40210595,144.07,144.04,24.29880587]
[1750341385590,11.40210595,144.07,144.04,17.35628991]
[1750341386012,9.8946554,144.1,144.04,17.35628991]
[1750341386197,11.40210595,144.07,144.04,17.35628991]
[1750341387017,11.40210595,144.08,144.04,28.75839586]
[1750341387312,11.40210595,144.07,144.04,17.35628991]
[1750341387810,11.40210595,144.07,144.04,24.29880587]
[1750341392323,11.40210595,144.07,144.02,24.30218025]
[1750341392526,11.40210595,144.07,144.03,30.05175481]
[1750341393300,26.0,144.08,144.02,24.30218025]
[1750341393626,11.40210595,144.04,144.02,24.30218025]
[1750341394408,11.40210595,144.04,144.02,17.35870018]
[1750341394695,26.0,144.06,144.02,17.35870018]
[1750341394895,11.40210595,144.05,144.02,17.35870018]
[1750341396021,11.40210595,144.05,144.02,24.30218025]
[1750341396230,37.40210595,144.06,144.02,35.7042862]
[1750341397407,11.40210595,144.05,144.02,24.30218025]
[1750341398723,26.0,144.08,144.02,24.30218025]
[1750341398905,11.40210595,144.06,144.02,35.7042862]
[1750341399316,37.40210595,144.07,144.03,11.40210595]
[1750341399512,11.40210595,144.07,144.03,11.40210595]
[1750341400127,11.40210595,144.07,144.02,24.30218025]
[1750341400317,11.40210595,144.07,144.03,11.40210595]
[1750341400631,11.40210595,144.07,144.04,24.29880587]
[1750341400808,26.0,144.08,144.04,24.29880587]
[1750341401007,11.40210595,144.07,144.04,24.29880587]
[1750341402516,26.0,144.08,144.04,35.70091182]
[1750341402714,26.0,144.08,144.05,11.40210595]
[1750341403408,24.55538032,144.12,144.06,11.40210595]
[1750341403631,11.40210595,144.11,144.06,11.40210595]
[1750341404408,11.40210595,144.11,144.07,24.29374609]
[1750341404730,18.10598032,144.12,144.07,35.69585204]
[1750341404929,11.40210595,144.11,144.07,24.29374609]
[1750341406211,44.10598032,144.12,144.08,11.40210595]
[1750341406443,18.10598032,144.12,144.1,11.40210595]
[1750341406628,11.40210595,144.15,144.11,11.40210595]
[1750341407012,26.0,144.15,144.1,11.40210595]
[1750341407213,11.40210595,144.14,144.08,18.64964886]
[1750341407517,11.40210595,144.1,144.07,24.29374609]
[1750341408345,11.40210595,144.11,144.07,35.69585204]
[1750341409540,11.40210595,144.1,144.07,6.94107031]
[1750341409847,11.40210595,144.08,144.05,7.9985]
[1750341410014,26.0,144.11,144.05,6.38]
[1750341410015,11.40210595,144.07,144.05,6.38]
[1750341410214,26.0,144.11,144.05,13.32185199]
[1750341410546,26.0,144.1,144.05,13.32185199]
[1750341410729,11.40210595,144.08,144.05,13.32185199]
[1750341411820,11.40210595,144.07,144.05,13.32185199]
[1750341412220,26.0,144.1,144.05,13.32185199]
[1750341412450,11.40210595,144.08,144.05,13.32185199]
[1750341413751,26.0,144.1,144.05,13.32185199]
[1750341414232,11.40210595,144.08,144.05,13.32185199]
[1750341415340,11.40210595,144.07,144.05,13.32185199]
[1750341416457,26.0,144.1,144.05,13.32185199]
[1750341416640,11.40210595,144.08,144.05,30.67693702]
[1750341416835,11.40210595,144.09,144.05,30.67693702]
[1750341417147,164.94051866,144.13,144.05,30.67693702]
[1750341417148,11.40210595,144.1,144.05,30.67693702]
[1750341417450,11.40210595,144.09,144.05,42.07904297]
[1750341418326,11.40210595,144.1,144.06,11.40210595]
[1750341419234,11.40210595,144.09,144.05,42.07904297]
[1750341420440,158.00210595,144.13,144.05,42.07904297]
[1750341420642,11.40210595,144.09,144.05,42.07904297]
[1750341421030,11.40210595,144.07,144.05,30.67693702]
[1750341421237,11.40210595,144.07,144.05,13.32185199]
[1750341421747,26.0,144.1,144.05,24.72395794]
[1750341421950,37.40210595,144.1,144.05,42.07904297]
[1750341422252,11.40210595,144.1,144.05,42.07904297]
[1750341422555,26.0,144.13,144.06,18.64964886]
[1750341422732,11.40210595,144.1,144.07,24.29374609]
[1750341423352,11.40210595,144.11,144.07,35.69585204]
[1750341423648,11.40210595,144.13,144.09,11.40210595]
[1750341423968,11.40210595,144.13,144.07,25.89154609]
[1750341423969,11.40210595,144.15,144.11,11.40210595]
[1750341424340,32.1423,144.18,144.1,11.40210595]
[1750341424341,11.40210595,144.14,144.1,11.40210595]
[1750341424558,80.76810841,144.18,144.08,18.64964886]
[1750341424744,11.40210595,144.12,144.09,6.94010687]
[1750341425057,11.40210595,144.12,144.09,24.29037406]
[1750341425236,11.40210595,144.1,144.09,6.94010687]
[1750341425768,11.40210595,144.11,144.09,6.94010687]
[1750341426137,11.40210595,144.12,144.09,6.94010687]
[1750341426550,11.40210595,144.11,144.09,6.94010687]
[1750341426959,11.40210595,144.11,144.08,24.29205996]
[1750341427159,11.40210595,144.12,144.08,35.69416591]
[1750341427356,26.0,144.13,144.08,35.69416591]
[1750341427666,11.40210595,144.13,144.09,30.05175481]
[1750341427835,37.40210595,144.14,144.09,30.05175481]
[1750341428341,11.40210595,144.13,144.09,30.05175481]
[1750341428952,11.40210595,144.13,144.1,24.28868841]
[1750341429364,11.40210595,144.12,144.1,24.28868841]
[1750341429845,11.40210595,144.13,144.1,24.28868841]
[1750341431466,83.58829613,144.18,144.1,35.69079436]
[1750341431467,26.0,144.15,144.1,35.69079436]
[1750341431776,11.40210595,144.13,144.1,24.28868841]
[1750341432547,26.0,144.15,144.1,24.28868841]
[1750341432743,11.40210595,144.13,144.1,24.28868841]
[1750341433143,11.40210595,144.14,144.1,35.69079436]
[1750341433658,11.40210595,144.17,144.13,11.40210595]
[1750341433972,11.40210595,144.14,144.11,25.00964886]
[1750341434177,11.40210595,144.15,144.11,36.41175481]
[1750341434965,11.40210595,144.14,144.11,18.64964886]
[1750341435537,11.40210595,144.14,144.12,6.93866222]
[1750341435735,26.0,144.17,144.12,24.28531778]
[1750341435938,11.40210595,144.14,144.12,24.28531778]
[1750341436384,26.0,144.17,144.12,24.28531778]
[1750341436556,11.40210595,144.14,144.12,24.28531778]
[1750341436966,26.0,144.17,144.12,24.28531778]
[1750341437176,11.40210595,144.15,144.12,24.28531778]
[1750341438848,26.0,144.17,144.12,24.28531778]
[1750341439156,26.0,144.17,144.12,35.68742373]
[1750341439464,11.40210595,144.18,144.13,30.05175481]
[1750341439773,11.40210595,144.18,144.15,6.93721817]
[1750341440474,26.0,144.2,144.15,6.93721817]
[1750341440773,11.40210595,144.16,144.15,6.93721817]
[1750341441667,11.40210595,144.16,144.11,17.34697441]
[1750341441868,11.40210595,144.14,144.11,17.34697441]
[1750341442069,11.40210595,144.14,144.11,24.28611811]
[1750341442567,26.0,144.17,144.11,24.28611811]
[1750341442776,11.40210595,144.13,144.11,24.28611811]
[1750341443073,11.40210595,144.13,144.11,6.9391437]
[1750341443666,11.40210595,144.12,144.11,6.9391437]
[1750341444964,11.40210595,144.13,144.11,6.9391437]
[1750341445567,11.40210595,144.12,144.08,6.94058856]
[1750341445769,11.40210595,144.09,144.08,6.94058856]
[1750341445980,11.40210595,144.09,144.07,50.45460824]
[1750341446149,11.40210595,144.08,144.07,50.45460824]
[1750341446354,32.478,144.11,144.07,57.39567855]
[1750341446576,11.40210595,144.08,144.07,57.39567855]
[1750341447382,11.40210595,144.09,144.07,57.39567855]
[1750341448553,11.40210595,144.1,144.07,74.74835433]
[1750341448763,11.40210595,144.11,144.07,74.74835433]
[1750341448961,11.40210595,144.11,144.07,86.15046028]
[1750341450284,11.40210595,144.1,144.07,74.74835433]
[1750341451661,11.40210595,144.11,144.07,86.15046028]
[1750341454876,26.0,144.12,144.07,74.74835433]
[1750341455077,11.40210595,144.1,144.07,74.74835433]
[1750341455276,11.40210595,144.11,144.07,74.74835433]
[1750341456087,26.0,144.12,144.07,74.74835433]
[1750341456384,11.40210595,144.11,144.07,74.74835433]
[1750341456685,11.40210595,144.1,144.07,74.74835433]
[1750341458781,26.0,144.12,144.07,86.15046028]
[1750341458969,26.0,144.12,144.08,30.05175481]
[1750341459171,37.40210595,144.12,144.08,30.05175481]
[1750341460068,26.0,144.12,144.08,30.05175481]
[1750341460263,37.40210595,144.12,144.08,30.05175481]
[1750341460879,37.40210595,144.12,144.09,6.94010687]
[1750341461089,37.40210595,144.12,144.09,24.29037406]
[1750341461555,26.0,144.12,144.09,24.29037406]
[1750341461761,37.40210595,144.12,144.09,24.29037406]
[1750341462170,11.40210595,144.1,144.09,6.94010687]
[1750341462968,11.40210595,144.1,144.08,6.94058856]
[1750341463171,11.40210595,144.11,144.08,6.94058856]
[1750341464486,11.40210595,144.11,144.08,24.29205996]
[1750341464789,26.0,144.12,144.07,50.45460824]
[1750341464790,11.40210595,144.09,144.07,50.45460824]
[1750341464967,32.93880685,144.12,144.07,50.45460824]
[1750341464968,11.40210595,144.08,144.07,50.45460824]
[1750341466090,11.40210595,144.08,144.07,57.39561162]
[1750341466393,9.89018986,144.11,144.07,103.5282874]
[1750341466394,11.40210595,144.11,144.07,103.5282874]
[1750341466767,11.40210595,144.1,144.07,103.5282874]
[1750341468572,11.40210595,144.1,144.07,74.7482874]
[1750341470173,11.40210595,144.08,144.07,57.39561162]
[1750341470972,11.40210595,144.08,144.07,50.45460824]
[1750341471480,11.40210595,144.08,144.06,6.94139146]
[1750341471682,11.40210595,144.07,144.06,6.94139146]
[1750341472083,11.40210595,144.07,144.04,24.29880587]
[1750341472800,26.0,144.09,144.04,24.29880587]
[1750341472993,11.40210595,144.08,144.04,24.29880587]
[1750341473799,11.40210595,144.08,144.04,35.70091182]
[1750341475181,11.40210595,144.08,144.04,24.29880587]
[1750341475977,11.40210595,144.07,144.04,24.29880587]
[1750341480280,11.40210595,144.06,144.04,24.29880587]
[1750341480706,11.40210595,144.05,144.03,13.28283021]
[1750341480910,11.40210595,144.04,144.0,24.30545944]
[1750341481197,11.40210595,144.02,144.0,24.30545944]
[1750341481411,11.40210595,144.03,144.0,24.30545944]
[1750341483802,11.40210595,144.01,143.96,1.572]
[1750341484004,11.40210595,143.99,143.97,6.9458915]
[1750341484593,32.1254,144.04,143.97,6.9458915]
[1750341484803,11.40210595,144.0,143.97,24.31062026]
[1750341486786,32.1254,144.04,143.97,24.31062026]
[1750341487304,6.1388,144.07,144.0,11.40210595]
[1750341487482,11.40210595,144.06,144.03,6.94299798]
[1750341487684,6.3135,144.11,144.04,11.40210595]
[1750341487991,11.40210595,144.07,144.03,35.70259889]
[1750341488200,11.40210595,144.06,144.03,24.30049294]
[1750341488396,11.40210595,144.07,144.03,35.70259889]
[1750341490005,11.40210595,144.06,144.03,24.30049294]
[1750341490193,11.40210595,144.05,144.03,24.30049294]
[1750341490603,11.40210595,144.05,144.03,6.94299798]
[1750341491003,11.40210595,144.04,144.03,6.94299798]
[1750341491216,11.40210595,144.05,144.03,6.94299798]
[1750341491581,11.40210595,144.07,144.03,24.30049294]
[1750341492116,11.40210595,144.06,144.03,24.30049294]
[1750341495008,26.0,144.08,144.03,24.30049294]
[1750341495306,11.40210595,144.07,144.03,35.70259889]
[1750341495696,11.40210595,144.06,144.03,24.30049294]
[1750341497412,11.40210595,144.07,144.03,35.70259889]
[1750341497712,11.40210595,144.08,144.04,30.05175481]
[1750341498214,11.40210595,144.07,144.04,18.64964886]
[1750341498933,11.40210595,144.07,144.03,35.70259889]
[1750341499615,11.40210595,144.07,144.03,24.30049294]
[1750341499918,13.25270585,144.11,144.03,24.30049294]
[1750341499919,11.40210595,144.06,144.03,24.30049294]
[1750341500088,11.40210595,144.05,144.03,24.30049294]
[1750341500284,11.40210595,144.05,144.03,6.94299798]
[1750341500485,11.40210595,144.04,144.03,6.94299798]
[1750341501501,11.40210595,144.04,144.01,24.30363895]
[1750341501696,11.40210595,144.02,144.01,6.94396222]
[1750341502695,11.40210595,144.03,144.01,6.94396222]
[1750341502912,6.5329,144.06,144.01,6.94396222]
[1750341503112,11.40210595,144.04,144.01,6.94396222]
[1750341504003,11.40210595,144.04,144.01,24.30386778]
[1750341504392,11.40210595,144.03,144.01,24.30386778]
[1750341505533,11.40210595,144.03,144.01,6.94396222]
[1750341506096,6.5329,144.06,144.01,6.94396222]
[1750341506294,11.40210595,144.03,144.01,6.94396222]
[1750341508114,11.40210595,144.05,144.01,35.70597373]
[1750341508491,146.6,144.09,144.01,35.70597373]
[1750341508716,6.1381,144.1,144.04,11.40210595]
[1750341509015,11.40210595,144.08,144.03,56.05175481]
[1750341509218,11.40210595,144.06,144.03,44.64964886]
[1750341509395,11.40210595,144.07,144.03,56.05175481]
[1750341509797,11.40210595,144.07,144.04,24.29880587]
[1750341510503,11.40210595,144.08,144.04,35.70091182]
[1750341510695,11.40210595,144.11,144.07,11.40210595]
[1750341511015,9.8503714,144.13,144.07,11.40210595]
[1750341511213,11.40210595,144.11,144.07,11.40210595]
[1750341511439,9.8503714,144.13,144.06,1.5652]
[1750341511440,11.40210595,144.09,144.06,1.5652]
[1750341511614,11.40210595,144.09,144.05,11.40210595]
[1750341511794,11.40210595,144.09,144.05,30.05175481]
[1750341511996,11.40210595,144.09,144.06,24.29543245]
[1750341512315,11.40210595,144.1,144.06,24.29543245]
[1750341513796,11.40210595,144.09,144.06,24.29543245]
[1750341515434,11.40210595,144.08,144.06,6.94155213]
[1750341516404,11.40210595,144.08,144.04,35.70068037]
[1750341517114,11.40210595,144.09,144.05,11.40210595]
[1750341517504,11.40210595,144.09,144.04,24.29857442]
[1750341517706,11.40210595,144.09,144.04,35.70068037]
[1750341518129,11.40210595,144.08,144.04,35.70068037]
[1750341518328,11.40210595,144.06,144.03,6.94299798]
[1750341518632,11.40210595,144.05,144.03,6.94299798]
[1750341518817,11.40210595,144.06,144.03,6.94299798]
[1750341519214,37.62241588,144.22,144.03,6.94299798]
[1750341519215,6.1131,144.14,144.05,11.40210595]
[1750341519426,11.40210595,144.11,144.07,11.40210595]
[1750341519621,11.40210595,144.1,144.05,11.40210595]
[1750341520129,11.40210595,144.06,144.03,6.94299798]
[1750341520311,11.40210595,144.05,144.03,6.94299798]
[1750341520634,11.40210595,144.06,144.03,24.30049294]
[1750341521815,11.40210595,144.08,144.03,35.70259889]
[1750341522213,26.0,144.09,144.03,35.70259889]
[1750341522214,11.40210595,144.07,144.03,35.70259889]
[1750341524735,26.0,144.09,144.03,28.75960091]
[1750341524914,11.40210595,144.08,144.03,28.75960091]
[1750341525116,11.40210595,144.07,144.03,17.35749496]
[1750341525329,11.40210595,144.06,144.03,17.35749496]
[1750341525912,11.40210595,144.07,144.03,17.35749496]
[1750341526527,26.0,144.09,144.03,17.35749496]
[1750341526712,11.40210595,144.07,144.03,35.70259889]
[1750341527116,11.40210595,144.07,144.03,24.30049294]
[1750341528225,11.40210595,144.07,144.03,17.35749496]
[1750341528812,11.40210595,144.07,144.03,28.75960091]
[1750341529348,11.40210595,144.07,144.03,17.35749496]
[1750341529637,11.40210595,144.06,144.03,17.35749496]
[1750341529810,26.0,144.08,144.03,17.35749496]
[1750341530014,11.40210595,144.07,144.03,17.35749496]
[1750341530327,12.04740713,144.11,144.03,24.30049294]
[1750341530328,11.40210595,144.06,144.03,24.30049294]
[1750341530527,11.40210595,144.07,144.03,24.30049294]
[1750341530733,11.40210595,144.06,144.03,24.30049294]
[1750341531943,11.40210595,144.08,144.04,11.40210595]
[1750341532120,11.40210595,144.07,144.03,35.70259889]
[1750341532445,26.0,144.09,144.03,35.70259889]
[1750341532629,11.40210595,144.07,144.03,35.70259889]
[1750341533140,26.0,144.09,144.03,24.30049294]
[1750341533319,11.40210595,144.07,144.03,24.30049294]
[1750341534139,26.0,144.09,144.03,24.30049294]
[1750341534339,11.40210595,144.07,144.03,24.30049294]
[1750341535441,26.0,144.09,144.03,24.30049294]
[1750341535740,11.40210595,144.07,144.03,24.30049294]
[1750341536328,11.40210595,144.07,144.03,35.70259889]
[1750341537317,11.40210595,144.07,144.03,24.30049294]
[1750341538926,11.40210595,144.07,144.03,35.70259889]
[1750341539745,11.40210595,144.06,144.03,24.30049294]
[1750341540728,26.0,144.07,144.03,24.30049294]
[1750341540924,6.93938756,144.11,144.03,24.30049294]
[1750341540925,11.40210595,144.06,144.03,24.30049294]
[1750341542043,11.40210595,144.07,144.03,24.30049294]
[1750341543426,11.40210595,144.07,144.03,35.70259889]
[1750341543649,11.40210595,144.08,144.04,11.40210595]
[1750341543848,26.0,144.08,144.04,11.40210595]
[1750341544051,37.40210595,144.08,144.04,11.40210595]
[1750341544718,41.69,144.12,144.05,24.29711904]
[1750341544925,11.40210595,144.11,144.06,11.40210595]
[1750341545145,11.40210595,144.1,144.06,11.40210595]
[1750341546043,146.6,144.16,144.09,11.40210595]
[1750341546353,47.9725,144.18,144.12,11.40210595]
[1750341546556,37.40210595,144.16,144.12,11.40210595]
[1750341546769,47.9725,144.18,144.12,11.40210595]
[1750341546770,47.9725,144.18,144.13,6.9381808]
[1750341547052,11.40210595,144.18,144.13,35.68573877]
[1750341547351,11.40210595,144.17,144.13,35.68573877]
[1750341547851,37.40210595,144.18,144.13,35.68573877]
[1750341548057,19.39758531,144.2,144.15,11.40210595]
[1750341548354,19.39758531,144.2,144.17,11.40210595]
[1750341548649,30.79969126,144.2,144.18,6.93577472]
[1750341549254,11.40210595,144.19,144.11,24.28700297]
[1750341549460,11.40210595,144.17,144.13,11.40210595]
[1750341549635,26.0,144.19,144.14,11.40210595]
[1750341549945,37.40210595,144.19,144.15,11.40210595]
[1750341550536,11.40210595,144.18,144.14,11.40210595]
[1750341550847,26.0,144.19,144.12,24.94964886]
[1750341550848,11.40210595,144.17,144.13,24.28363282]
[1750341551043,26.0,144.19,144.13,24.28363282]
[1750341551044,11.40210595,144.16,144.13,24.28363282]
[1750341551238,26.0,144.19,144.13,35.68573877]
[1750341551239,11.40210595,144.17,144.13,35.68573877]
[1750341552241,11.40210595,144.18,144.14,11.40210595]
[1750341552636,26.0,144.19,144.14,11.40210595]
[1750341552850,11.40210595,144.18,144.14,11.40210595]
[1750341553250,26.0,144.19,144.14,11.40210595]
[1750341553450,11.40210595,144.18,144.14,11.40210595]
[1750341553638,26.0,144.19,144.15,6.93721817]
[1750341553843,11.40210595,144.18,144.15,6.93721817]
[1750341554344,11.40210595,144.17,144.15,6.93721817]
[1750341554635,11.40210595,144.17,144.15,24.2802636]
[1750341555251,11.40210595,144.17,144.15,17.34304543]
[1750341556042,26.0,144.19,144.15,17.34304543]
[1750341556247,11.40210595,144.18,144.15,17.34304543]
[1750341557131,11.40210595,144.18,144.15,24.2802636]
[1750341557778,37.40210595,144.19,144.15,24.2802636]
[1750341558140,11.40210595,144.18,144.15,24.2802636]
[1750341558563,11.40210595,144.16,144.15,24.2802636]
[1750341558862,11.40210595,144.16,144.15,6.93721817]
[1750341559244,11.40210595,144.16,144.11,24.28700297]
[1750341559447,11.40210595,144.14,144.11,24.28700297]
[1750341559964,26.0,144.16,144.11,24.28700297]
[1750341560167,11.40210595,144.14,144.11,24.28700297]
[1750341566498,11.40210595,144.15,144.11,24.28700297]
[1750341566684,11.40210595,144.15,144.11,35.68910892]
[1750341567474,11.40210595,144.15,144.11,24.28700297]
[1750341567657,11.40210595,144.15,144.11,35.68910892]
[1750341568450,11.40210595,144.14,144.11,24.28700297]
[1750341572266,11.40210595,144.13,144.11,24.28700297]
[1750341574049,26.0,144.16,144.11,24.28700297]
[1750341574271,11.40210595,144.14,144.11,24.28700297]
[1750341576759,11.40210595,144.12,144.11,6.9391437]
[1750341579581,11.40210595,144.13,144.11,6.9391437]
[1750341579979,11.40210595,144.12,144.11,6.9391437]
[1750341581649,11.40210595,144.12,144.1,6.93941813]
[1750341581887,11.40210595,144.11,144.1,6.93941813]
[1750341583381,11.40210595,144.11,144.07,17.35253364]
[1750341583580,11.40210595,144.09,144.07,17.35253364]
[1750341584680,11.40210595,144.1,144.07,17.35253364]
[1750341585884,11.40210595,144.09,144.07,17.35253364]
[1750341587487,11.40210595,144.1,144.07,24.29360395]
[1750341589000,26.0,144.12,144.07,58.99895551]
[1750341589185,11.40210595,144.11,144.07,70.40106146]
[1750341589685,26.0,144.12,144.07,70.40106146]
[1750341589996,11.40210595,144.1,144.07,58.99895551]
[1750341590286,11.40210595,144.09,144.07,24.29360395]
[1750341590666,11.40210595,144.09,144.07,17.35253364]
[1750341592593,11.40210595,144.08,144.07,17.35253364]
[1750341592883,11.40210595,144.08,144.07,24.29360395]
[1750341593988,11.40210595,144.08,144.07,6.94107031]
[1750341594773,11.40210595,144.08,144.06,6.94155213]
[1750341594988,11.40210595,144.07,144.06,6.94155213]
[1750341597179,11.40210595,144.07,144.05,13.20184828]
[1750341597384,6.93984904,144.1,144.05,13.20184828]
[1750341597588,11.40210595,144.06,144.05,13.20184828]
[1750341599377,11.40210595,144.07,144.05,30.55693331]
[1750341600196,11.40210595,144.06,144.05,30.55693331]
[1750341600402,26.0,144.08,144.05,30.55693331]
[1750341600693,11.40210595,144.06,144.05,30.55693331]
[1750341601071,22.8042119,144.06,143.98,1.5288]
[1750341601266,26.0,144.08,144.0,11.40210595]
[1750341601580,26.0,144.07,143.99,24.30663495]
[1750341601776,11.40210595,144.03,143.99,35.7087409]
[1750341601977,11.40210595,144.03,143.99,24.30663495]
[1750341602179,11.40210595,144.06,143.99,24.30663495]
[1750341602180,11.40210595,144.02,143.99,24.30663495]
[1750341602373,17.90470595,144.06,143.99,24.30663495]
[1750341602570,11.40210595,144.02,143.99,24.30663495]
[1750341602771,11.40210595,144.01,143.99,24.30663495]
[1750341603276,11.40210595,144.0,143.99,6.94492673]
[1750341603987,11.40210595,144.02,143.99,6.94492673]
[1750341604194,11.40210595,144.02,143.99,24.30724355]
[1750341604384,1.6494,144.05,143.99,24.30724355]
[1750341604693,37.40210595,144.03,143.99,35.7093495]
[1750341605398,37.40210595,144.03,143.99,24.30724355]